fUSD/lending_fUSD_20241112
["ID","MTS","AMOUNT","RATE_DAILY","PERIOD"]
[342098079,1731437432711,-500.0,0.00012501,2]
[342098081,1731437432720,-500.0,0.00012501,2]
[342098083,1731437432730,-500.0,0.00012501,2]
[342098085,1731437432739,-500.0,0.00012501,2]
[342098087,1731437432749,-500.0,0.00012501,2]
[342098089,1731437432758,-500.0,0.00012501,2]
[342098090,1731437432767,-500.0,0.00012501,2]
[342098091,1731437432777,-500.0,0.00012501,2]
[342098092,1731437432786,-530.66590557,0.00012501,2]
[342098093,1731437432796,-500.0,0.00012501,2]
[342098094,1731437432805,-500.0,0.00012501,2]
[342098095,1731437432815,-500.0,0.00012501,2]
[342098096,1731437432827,-500.0,0.00012501,2]
[342098097,1731437432837,-500.0,0.00012501,2]
[342098098,1731437432847,-500.0,0.00012501,2]
[342098100,1731437432856,-600.0,0.00012501,2]
[342098102,1731437432867,-537.56721244,0.00012501,2]
[342098104,1731437432876,-537.56721244,0.00012501,2]
[342098106,1731437432885,-537.56721244,0.00012501,2]
[342098107,1731437432895,-537.56721244,0.00012501,2]
[342098109,1731437432905,-537.56721244,0.00012501,2]
[342098111,1731437432914,-200.0,0.00012501,2]
[342098113,1731437432923,-11840.64074406,0.00012502,2]
[342098115,1731437432932,-1254675.12849311,0.00012502,2]
[342098117,1731437432941,-6537.60830516,0.00012502,2]
[342098118,1731437432951,-2173878.82768334,0.00012502,2]
[342098119,1731437433003,-497.65536239,0.00012502,2]
[342098120,1731437433015,-135850.22879999,0.00012502,2]
[342098121,1731437433091,-5324.78847646,0.00012502,2]
[342098123,1731437438786,-964.18124933,0.00012473,2]
[342098124,1731437438795,-506.69783568,0.00012502,2]
[342098125,1731437438806,-34588.26347,0.00012502,2]
[342098126,1731437438817,-28399.55202,0.00012502,2]
[342098127,1731437438899,-2261.02859279,0.00012502,2]
[342098128,1731437438910,-587.61153,0.00012502,2]
[342098129,1731437438921,-2656.28511372,0.00012502,2]
[342098130,1731437438932,-1404.34,0.00012502,2]
[342098131,1731437438978,-137264.88373445,0.00012502,2]
[342098132,1731437439048,-2359.89359834,0.00012502,2]
[342098133,1731437439060,-2087.09411504,0.00012502,2]
[342098134,1731437439071,-3057.50876862,0.00012502,2]
[342098138,1731437440197,-8365.2364597,0.00012502,2]
[342098139,1731437440212,-50510.67413295,0.00012502,2]
[342098140,1731437440224,-1132.56661331,0.00012502,2]
[342098141,1731437440313,-4940.65527093,0.00012502,2]
[342098142,1731437440325,-1641.9285,0.00012502,2]
[342098143,1731437440341,-2669.02557966,0.00012502,2]
[342098144,1731437440352,-642.31698032,0.00012502,2]
[342098145,1731437440364,-4345.84966244,0.00012502,2]
[342098152,1731437443322,-6008.99818813,0.00012502,2]
[342098153,1731437443337,-3817.661861,0.00012502,2]
[342098154,1731437443348,-4200.67242044,0.00012502,2]
[342098155,1731437443360,-5730.48761876,0.00012502,2]
[342098156,1731437443371,-10276.90570462,0.00012502,2]
[342098157,1731437443394,-15720.0,0.00012502,2]
[342098158,1731437443406,-53163.2816543,0.00012502,2]
[342098159,1731437443501,-44231.8446,0.00012502,2]
[342098160,1731437443515,-4582.35510201,0.00012502,2]
[342098161,1731437443527,-477.75061087,0.00012502,2]
[342098183,1731437446076,-829.94832032,0.00012401,2]
[342098184,1731437446097,-937.29712657,0.00012401,2]
[342098185,1731437446107,-21222.95287343,0.00012502,2]
[342098186,1731437446120,-18603.96988,0.00012502,2]
[342098187,1731437446132,-19601.5,0.00012502,2]
[342098236,1731437447106,-15394.15783206,0.00012502,2]
[342098254,1731437447480,-2258.86442734,0.00012502,2]
[342098255,1731437447491,-1403.43966,0.00012502,2]
[342098256,1731437447503,-313.44664495,0.00012502,2]
[342098257,1731437450003,294.8712,0.00012301,2]
[342098258,1731437453399,811.01,0.00011921,2]
[342098259,1731437476318,800.0,0.00012,4]
[342098260,1731437478358,1600.0,0.000121,4]
[342098261,1731437480589,2400.0,0.000122,4]
[342098263,1731437482974,3200.0,0.000123,4]
[342098264,1731437485090,4000.0,0.000124,4]
[342098265,1731437487551,800.0,0.000125,4]
[342098266,1731437489867,800.0,0.000126,4]
[342098267,1731437492266,800.0,0.000127,4]
[342098268,1731437494035,800.0,0.000128,4]
[342098269,1731437496217,1175.0,0.000129,4]
[342098270,1731437510820,22450.0,0.00011864,2]
[342098272,1731437577061,1476.19,9.943e-05,2]
[342098273,1731437577280,1476.19,0.00012206,2]
[342098274,1731437582454,2303.166,0.00012252,2]
[342098275,1731437582656,174.468,0.00012252,2]
[342098276,1731437594287,200.0,0.0001186,2]
[342098277,1731437676045,450.89,0.00011844,2]
[342098278,1731437686801,160.4,0.00011844,2]
[342098280,1731437839530,150.0,0.0001181,2]
[342098281,1731437920747,250.0,0.00011774,2]
[342098282,1731437926458,183.41,8.219e-05,2]
[342098283,1731437933233,167.0,0.00012119,2]
[342098284,1731437937735,500.0,0.0001178,2]
[342098286,1731438081784,368.09,0.00011749,2]
[342098288,1731438185323,150.24865567,0.00011691,2]
[342098290,1731438286884,1328.57,9.698e-05,2]
[342098291,1731438287017,1328.57,0.00011962,2]
[342098292,1731438309183,250.0,0.00011616,2]
[342098293,1731438310466,1000.0,0.00011608,2]
[342098294,1731438329768,405.5,0.00011616,2]
[342098296,1731438355022,1126.5174,0.00012301,2]
[342098298,1731438421502,7499.18,0.000116,2]
[342098299,1731438425978,439.28,0.000116,2]
[342098300,1731438473421,150.0,0.000116,2]
[342098301,1731438473443,10.4,0.000116,2]
[342098302,1731438499168,150.0,0.00012148,2]
[342098303,1731438499191,24.59,0.00012148,2]
[342098304,1731438529431,984.28,0.000116,2]
[342098314,1731438632125,-368.09,0.00012337,2]
[342098315,1731438632134,-1407.01,0.0001238,2]
[342098316,1731438632146,-1592.99,0.0001238,2]
[342098318,1731438632155,-150.0,0.000124,2]
[342098319,1731438632164,-300.0,0.000124,2]
[342098320,1731438632173,-8693.4,0.00012401,2]
[342098321,1731438632182,-1387.881,0.00012401,2]
[342098322,1731438632191,-13208.2956,0.00012401,2]
[342098324,1731438632200,-2398.02,0.00012402,2]
[342098325,1731438632209,-1000.0,0.00012402,2]
[342098326,1731438632218,-14358.1421,0.00012402,2]
[342098327,1731438632228,-191.18320302,0.00012402,2]
[342098328,1731438632237,-1285.1765261,0.00012402,2]
[342098329,1731438632246,-36073.91960272,0.00012402,2]
[342098330,1731438632255,-118.31879422,0.00012492,2]
[342098331,1731438632319,-82.95979806,0.00012492,2]
[342098332,1731438632328,-201.27859228,0.00012492,2]
[342098333,1731438632339,-85.33343986,0.00012493,2]
[342098334,1731438632350,-807.9,0.00012493,2]
[342098335,1731438632377,-2012.00621611,0.00012493,2]
[342098347,1731438632685,-1223.76034403,0.00012493,2]
[342098349,1731438632695,-4002.5,0.00012497,2]
[342098351,1731438632704,-227.79,0.00012497,2]
[342098353,1731438632713,-607.85,0.00012497,2]
[342098355,1731438632722,-1436.75,0.00012497,2]
[342098357,1731438632732,-625.0,0.000125,2]
[342098359,1731438632741,-500.0,0.000125,2]
[342098361,1731438632750,-2248.0,0.000125,2]
[342098363,1731438632763,-250.0,0.000125,2]
[342098365,1731438632773,-250.0,0.000125,2]
[342098367,1731438632782,-250.0,0.000125,2]
[342098369,1731438632791,-250.0,0.000125,2]
[342098371,1731438632800,-250.0,0.000125,2]
[342098373,1731438632809,-250.0,0.000125,2]
[342098375,1731438632819,-250.0,0.000125,2]
[342098377,1731438632828,-250.0,0.000125,2]
[342098379,1731438632837,-257.2,0.000125,2]
[342098381,1731438632846,-536.08784551,0.00012501,2]
[342098383,1731438632856,-258.70322639,0.00012501,2]
[342098385,1731438632865,-90830.92736434,0.00012501,2]
[342098387,1731438632874,-600.0,0.00012501,2]
[342098389,1731438632884,-15369.615,0.00012501,2]
[342098391,1731438632894,-500.0,0.00012501,2]
[342098393,1731438632902,-470.81498837,0.00012501,2]
[342098395,1731438632911,-642.63959527,0.00012501,2]
[342098397,1731438632920,-229364.6724594,0.00012502,2]
[342098399,1731438632932,-2089.18213848,0.00012502,2]
[342098401,1731438632943,-4492.7795339,0.00012502,2]
[342098407,1731438632995,-48084.54205061,0.00012502,2]
[342098437,1731438638223,-2618.07169353,0.00012502,2]
[342098438,1731438638234,-5623.62487403,0.00012502,2]
[342098439,1731438638245,-3065.10878836,0.00012502,2]
[342098440,1731438638289,-35279.95030736,0.00012502,2]
[342098441,1731438638370,-88867.85908238,0.00012502,2]
[342098442,1731438638381,-1544.26291752,0.00012502,2]
[342098443,1731438638392,-9000.0,0.00012502,2]
[342098444,1731438638403,-1156.76773638,0.00012502,2]
[342098445,1731438638452,-514.11167622,0.00012501,2]
[342098446,1731438638461,-3122.92249372,0.00012502,2]
[342098447,1731438638472,-368.48460904,0.00012502,2]
[342098448,1731438638483,-1750.02659873,0.00012502,2]
[342098453,1731438639321,-820014.5113127,0.00012502,2]
[342098454,1731438639330,-7766.78862348,0.00012502,2]
[342098455,1731438639340,-369909.98213533,0.00012502,2]
[342098456,1731438639351,-284.18303037,0.00012502,2]
[342098457,1731438639362,-1958.76014747,0.00012502,2]
[342098460,1731438640431,-6646.52036323,0.00012502,2]
[342098461,1731438640453,-492.97,0.00012502,2]
[342098462,1731438640474,-11190.53913448,0.00012502,2]
[342098463,1731438640497,-626.06224569,0.00012502,2]
[342098464,1731438640520,-4686.78108659,0.00012502,2]
[342098465,1731438640540,-1531.58999996,0.00012502,2]
[342098466,1731438640755,-9123.83652377,0.00012502,2]
[342098467,1731438642163,150.0,8.219e-05,2]
[342098468,1731438642186,33.41,8.219e-05,2]
[342098476,1731438643222,-111355.43061798,0.00012502,2]
[342098477,1731438643233,-1086.68706573,0.00012502,2]
[342098478,1731438643244,-17768.05213256,0.00012502,2]
[342098479,1731438643397,-825.60650556,0.00012502,2]
[342098480,1731438643408,-830.00175765,0.00012502,2]
[342098481,1731438643419,-733.3,0.00012502,2]
[342098482,1731438643431,-469.84,0.00012502,2]
[342098483,1731438643442,-3429.82334596,0.00012502,2]
[342098484,1731438643454,-1175.16551341,0.00012502,2]
[342098485,1731438643465,-5873.13711145,0.00012502,2]
[342098486,1731438643478,-4806.08753159,0.00012502,2]
[342098487,1731438643489,-21714.74077529,0.00012502,2]
[342098488,1731438643501,-878.231083,0.00012502,2]
[342098489,1731438643529,-1359.09169887,0.00012502,2]
[342098490,1731438643541,-2929.2993102,0.00012502,2]
[342098503,1731438646234,-1005111.30576231,0.00012502,2]
[342098504,1731438646285,-4433.3,0.00012502,2]
[342098505,1731438646339,-8883.8889693,0.00012502,2]
[342098506,1731438646385,-1598.7780646,0.00012502,2]
[342098507,1731438646428,-1393.32,0.00012502,2]
[342098508,1731438646472,-3287.89999999,0.00012502,2]
[342098509,1731438646515,-1261.85997199,0.00012502,2]
[342098512,1731438669970,150.0,0.00011647,2]
[342098514,1731438720984,150.0,0.00011995,2]
[342098515,1731438721005,17.0,0.00011995,2]
[342098516,1731438739304,855.45,0.00011737,2]
[342098517,1731438782326,2439.031,0.00012252,2]
[342098518,1731438782644,174.469,0.00012252,2]
[342098519,1731438803554,250.0,0.00011641,2]
[342098520,1731438889514,293.53,0.00011641,2]
[342098521,1731438889721,293.53,0.00012223,2]
[342098536,1731438923252,150.0,0.00011638,2]
[342098537,1731438923275,15.59,0.00011638,2]
[342098538,1731438950387,23900.0,0.00011637,2]
[342098540,1731439038713,150.0,9.718e-05,2]
[342098541,1731439038738,150.0,9.718e-05,2]
[342098542,1731439038760,150.0,9.718e-05,2]
[342098543,1731439038786,150.0,9.718e-05,2]
[342098544,1731439038819,201.96057776,9.718e-05,2]
[342098545,1731439038843,476.53942224,9.718e-05,2]
[342098546,1731439038937,1278.5,0.00011982,2]
[342098547,1731439045654,150.0,0.00011636,2]
[342098548,1731439045676,150.0,0.00011636,2]
[342098549,1731439045698,150.0,0.00011636,2]
[342098550,1731439045723,150.0,0.00011636,2]
[342098551,1731439045744,150.0,0.00011636,2]
[342098552,1731439045764,150.0,0.00011636,2]
[342098553,1731439045787,100.0,0.00011636,2]
[342098555,1731439079615,150.0,0.00012253,2]
[342098556,1731439079638,150.0,0.00012253,2]
[342098557,1731439079658,150.0,0.00012253,2]
[342098558,1731439079678,150.0,0.00012253,2]
[342098559,1731439079700,150.0,0.00012253,2]
[342098560,1731439079723,150.0,0.00012253,2]
[342098561,1731439079742,180.08,0.00012253,2]
[342098562,1731439079776,3010.92,0.00012253,2]
[342098563,1731439085722,250.0,0.00011641,2]
[342098564,1731439107441,1112.08728888,0.00012301,2]
[342098565,1731439146610,202.75,0.00011641,2]
[342098566,1731439164653,219.66,0.00011641,2]
[342098567,1731439313810,183.41,8.219e-05,2]
[342098570,1731439382474,1951.225,0.00012132,2]
[342098571,1731439382673,174.46916725,0.00012132,2]
[342098572,1731439383122,150.0,0.00011696,2]
[342098574,1731439557818,250.0,0.00011703,2]
[342098575,1731439644804,1356.12616453,0.0001228,2]
[342098576,1731439649592,1704.11,0.00011733,2]
[342098577,1731439649729,1356.12616452,0.00012294,2]
[342098578,1731439659486,1356.12616452,0.00012307,2]
[342098579,1731439685636,35008.6671,0.0001228,2]
[342098593,1731439708898,176.11,0.00011582,2]
[342098594,1731439709172,176.11,0.00012161,2]
[342098601,1731439719044,167.0,0.0001193,2]
[342098617,1731439778473,1000.0,0.00011582,2]
[342098618,1731439790723,1162.58,9.664e-05,2]
[342098619,1731439790800,1162.58,0.00011928,2]
[342098625,1731439832362,-1356.12616452,0.00012321,2]
[342098626,1731439832372,-1356.12616452,0.00012334,2]
[342098627,1731439832381,-1356.12616452,0.00012348,2]
[342098629,1731439832394,-916.092625,0.00012361,2]
[342098631,1731439832515,-440.03353952,0.00012361,2]
[342098632,1731439832525,-186.61646048,0.00012375,2]
[342098633,1731439832536,-1169.50970404,0.00012375,2]
[342098634,1731439832545,-300.0,0.00012379,2]
[342098635,1731439832554,-150.0,0.00012379,2]
[342098636,1731439832563,-3699.8912907,0.0001238,2]
[342098694,1731439833490,-1794.97343761,0.0001238,2]
[342098695,1731439833502,-89407.12132316,0.0001238,2]
[342098696,1731439833585,-194964.51513938,0.0001238,2]
[342098699,1731439838445,-421.78190135,0.0001238,2]
[342098700,1731439838457,-6677.47683618,0.0001238,2]
[342098701,1731439838469,-1992.59763287,0.0001238,2]
[342098702,1731439838480,-1025.47988928,0.0001238,2]
[342098703,1731439838491,-2675.52,0.0001238,2]
[342098704,1731439838650,-24247.08538508,0.0001238,2]
[342098705,1731439838661,-445.42957939,0.0001238,2]
[342098706,1731439838673,-44570.64024436,0.0001238,2]
[342098707,1731439838683,-435539.06083168,0.0001238,2]
[342098708,1731439838692,-3000.0,0.0001238,2]
[342098709,1731439838702,-1356.12616452,0.00012388,2]
[342098710,1731439838713,-1133.0,0.000124,2]
[342098711,1731439838724,-33193.9211,0.00012401,2]
[342098712,1731439838734,-5375.4405,0.00012402,2]
[342098713,1731439838743,-1356.12616452,0.00012402,2]
[342098714,1731439838753,-1000.0,0.000125,2]
[342098715,1731439838762,-411.28934097,0.00012501,2]
[342098716,1731439838771,-500.0,0.00012501,2]
[342098717,1731439838781,-500.0,0.00012501,2]
[342098718,1731439838790,-623.22537069,0.00012501,2]
[342098719,1731439838799,-295812.46251526,0.00012502,2]
[342098720,1731439838811,-2018.3959091,0.00012502,2]
[342098721,1731439838823,-1787.9663667,0.00012502,2]
[342098722,1731439838901,-2677.8538,0.00012502,2]
[342098726,1731439839191,-26717.84074281,0.00012502,2]
[342098727,1731439839217,-178766.1537129,0.00012502,2]
[342098728,1731439839229,-536.484,0.00012502,2]
[342098729,1731439839424,-305.19612577,0.00012502,2]
[342098738,1731439840368,-810.042,0.00012502,2]
[342098739,1731439840518,-849.12539166,0.00012502,2]
[342098740,1731439840531,-5616.6468696,0.00012502,2]
[342098741,1731439840542,-991.77452803,0.00012502,2]
[342098742,1731439840553,-1116.67082908,0.00012502,2]
[342098743,1731439840591,-4911.13401841,0.00012502,2]
[342098777,1731439844441,-4068.34383354,0.00012502,2]
[342098782,1731439844479,-31817.98215778,0.00012502,2]
[342098793,1731439844568,-210487.38371459,0.00012502,2]
[342098795,1731439844580,-16118.66570488,0.00012502,2]
[342098797,1731439844591,-552.47591162,0.00012502,2]
[342098807,1731439844680,-376.65129988,0.00012502,2]
[342098847,1731439846304,-893.68028342,0.00012502,2]
[342098848,1731439846373,-6603.0,0.00012502,2]
[342098849,1731439846406,-2647.79417,0.00012502,2]
[342098850,1731439846417,-1653.14896107,0.00012502,2]
[342098851,1731439846429,-442.78417968,0.00012502,2]
[342098852,1731439846442,-13373.10000001,0.00012502,2]
[342098853,1731439846455,-1260.84573807,0.00012502,2]
[342098854,1731439846501,-4480.08672075,0.00012502,2]
[342098855,1731439846513,-1399.99991766,0.00012502,2]
[342098856,1731439846525,-4643.27532268,0.00012502,2]
[342098857,1731439846537,-2141.51065994,0.00012502,2]
[342098858,1731439846549,-94636.71784372,0.00012502,2]
[342098859,1731439846646,-45520.10181141,0.00012502,2]
[342098860,1731439846656,-5825.09146761,0.00012502,2]
[342098861,1731439846667,-40747.63260411,0.00012502,2]
[342099640,1731439863140,404.64,0.00011758,2]
[342099641,1731439883344,250.0,0.00011748,2]
[342099642,1731439913173,202.75,0.00011748,2]
[342099643,1731439923511,200.0,0.00011748,2]
[342099644,1731439982478,1560.98,0.00012252,2]
[342099645,1731440045425,150.0,0.00012245,2]
[342099646,1731440073118,183.41,8.219e-05,2]
[342099647,1731440158555,150.0,0.00011629,2]
[342099648,1731440193312,150.0,0.00012254,2]
[342099649,1731440193495,150.0,0.00012255,2]
[342099650,1731440193545,150.0,0.00012304,2]
[342099651,1731440195398,194.09627184,0.00012265,2]
[342099652,1731440200403,194.09627182,0.00012266,2]
[342099653,1731440205404,194.09627182,0.00012267,2]
[342099654,1731440210237,151.000001,0.00012,2]
[342099655,1731440222717,150.0,0.00012241,2]
[342099656,1731440223261,150.0,0.00012286,2]
[342099657,1731440223372,150.0,0.00012299,2]
[342099658,1731440223532,150.0,0.00012293,2]
[342099659,1731440223671,150.0,0.00012277,2]
[342099660,1731440223728,150.0,0.00012305,2]
[342099663,1731440292461,250.0,0.00011424,2]
[342099664,1731440344485,200.0,0.00012,4]
[342099665,1731440346619,500.0,0.000121,4]
[342099666,1731440349812,700.0,0.000122,4]
[342099667,1731440351914,1000.0,0.000123,4]
[342099668,1731440354064,1300.0,0.000124,4]
[342099669,1731440356161,200.0,0.000125,4]
[342099670,1731440359282,200.0,0.000126,4]
[342099671,1731440360573,200.0,0.000127,4]
[342099672,1731440362575,200.0,0.000128,4]
[342099673,1731440364683,475.0,0.000129,4]
[342099674,1731440409867,167.0,0.00011765,2]
[342099676,1731440473875,179.72,0.00011422,2]
[342099677,1731440474096,179.72,0.00011993,2]
[342099678,1731440533669,4881.33,0.00011425,2]
[342099679,1731440533793,166.67,0.00011426,2]
[342099680,1731440542501,1046.32,9.506e-05,2]
[342099681,1731440542609,1046.32,0.0001177,2]
[342099682,1731440570377,432.35,0.00011424,2]
[342099683,1731440575064,1271.56,0.00011424,2]
[342099684,1731440585134,250.0,0.00011423,2]
[342099685,1731440631690,1000.0,0.00011423,2]
[342099686,1731440652376,1875.48275716,0.00012281,2]
[342099687,1731440657281,1875.48275716,0.00012294,2]
[342099688,1731440662192,1875.48275716,0.00012308,2]
[342099689,1731440736351,158.08342535,0.00012306,2]
[342099690,1731440934970,503.7895,0.0001228,2]
[342099691,1731440940022,839.69,0.00011481,2]
[342099692,1731440940355,839.69,0.00011484,2]
[342099693,1731440940499,839.69,0.00011487,2]
[342099694,1731440940636,839.69,0.0001149,2]
[342099695,1731440940767,839.69,0.00011493,2]
[342099696,1731440941012,839.69,0.00011496,2]
[342099697,1731440941190,839.69,0.000115,2]
[342099698,1731440941288,839.69,0.00011503,2]
[342099699,1731440941735,839.69,0.00011506,2]
[342099700,1731440941867,839.69,0.00011509,2]
[342099701,1731440942118,839.69,0.00011512,2]
[342099702,1731440942375,839.69,0.00011515,2]
[342099703,1731440942587,839.69,0.00011518,2]
[342099704,1731440943091,839.69,0.00011521,2]
[342099705,1731440943469,839.69,0.00011524,2]
[342099706,1731440943697,839.69,0.00011527,2]
[342099707,1731440943941,839.69,0.0001153,2]
[342099708,1731440944221,839.69,0.00011533,2]
[342099709,1731440944486,839.69,0.00011536,2]
[342099710,1731440944677,839.69,0.00011539,2]
[342099721,1731441031744,-1875.48275716,0.00012321,2]
[342099722,1731441031754,-755.2,0.00012329,2]
[342099723,1731441031764,-158.08342535,0.0001233,2]
[342099724,1731441031774,-1875.48275716,0.00012335,2]
[342099725,1731441031783,-216.5799,0.00012343,2]
[342099726,1731441031793,-236.81210774,0.00012348,2]
[342099727,1731441031804,-1638.67064942,0.00012348,2]
[342099728,1731441031814,-1875.48275716,0.00012362,2]
[342099729,1731441031823,-330.51658742,0.0001237,2]
[342099730,1731441031835,-350.45251258,0.0001237,2]
[342099731,1731441031844,-1875.48275716,0.00012375,2]
[342099732,1731441031854,-889.94810693,0.00012378,2]
[342099733,1731441031866,-6145.74842623,0.00012378,2]
[342099734,1731441031877,-562.94152736,0.00012378,2]
[342099735,1731441031888,-4218.88193948,0.00012378,2]
[342099736,1731441031898,-1518.79,0.00012378,2]
[342099737,1731441031908,-166.67,0.00012378,2]
[342099738,1731441031917,-144.75810655,0.00012378,2]
[342099739,1731441031961,-381.08346741,0.00012378,2]
[342099740,1731441031973,-575.56159088,0.00012378,2]
[342099741,1731441031985,-2112.5918635,0.00012378,2]
[342099742,1731441031996,-4630.98497166,0.00012378,2]
[342099744,1731441032005,-150.0,0.00012379,2]
[342099746,1731441032014,-10724.9205,0.0001238,2]
[342099747,1731441032023,-1445.829,0.0001238,2]
[342099748,1731441032032,-569.7792,0.0001238,2]
[342099749,1731441032042,-1275.21,0.0001238,2]
[342099750,1731441032051,-487.3464,0.0001238,2]
[342099751,1731441032061,-2804.1606297,0.0001238,2]
[342099760,1731441032230,-6598.72854944,0.0001238,2]
[342099764,1731441037626,-1421.24922627,0.0001238,2]
[342099767,1731441037763,-2846.1830121,0.0001238,2]
[342099768,1731441037775,-999.73923828,0.0001238,2]
[342099769,1731441037787,-4182.63858277,0.0001238,2]
[342099770,1731441037799,-2613.80157118,0.0001238,2]
[342099771,1731441037811,-8370.88186093,0.0001238,2]
[342099772,1731441037822,-1039.6626057,0.0001238,2]
[342099773,1731441037920,-10577.74691361,0.0001238,2]
[342099774,1731441037932,-1000.0,0.0001238,2]
[342099775,1731441037942,-184094.01401002,0.0001238,2]
[342099776,1731441037952,-11436.2683,0.0001238,2]
[342099777,1731441037961,-887.2663,0.0001238,2]
[342099778,1731441037970,-1851.0899,0.0001238,2]
[342099779,1731441037980,-500.0,0.0001238,2]
[342099780,1731441037990,-3000.0,0.0001238,2]
[342099781,1731441037999,-1875.48275716,0.00012389,2]
[342099782,1731441038008,-230.2515779,0.0001239,2]
[342099783,1731441038017,-200.0,0.00012402,2]
[342099784,1731441038027,-200.0,0.00012402,2]
[342099785,1731441038037,-213.53891616,0.00012402,2]
[342099786,1731441038046,-179.0897819,0.00012402,2]
[342099787,1731441038055,-164.33035333,0.00012402,2]
[342099788,1731441038064,-1875.48275716,0.00012402,2]
[342099789,1731441038074,-3186.66579525,0.00012402,2]
[342099790,1731441038083,-1156.54085614,0.00012402,2]
[342099791,1731441038093,-1000.0,0.0001247,2]
[342099792,1731441038102,-838.0,0.0001247,2]
[342099793,1731441038111,-1000.0,0.0001247,2]
[342099794,1731441038120,-1000.0,0.0001247,2]
[342099795,1731441038129,-155.26961358,0.0001247,2]
[342099796,1731441038138,-500.0,0.00012473,2]
[342099797,1731441038147,-500.0,0.00012473,2]
[342099798,1731441038156,-500.0,0.00012473,2]
[342099800,1731441038165,-346335.28245558,0.0001248,2]
[342099802,1731441038176,-13055.31604296,0.0001248,2]
[342099853,1731441039773,-295.2679983,0.0001248,2]
[342099854,1731441039860,-432.18335078,0.0001248,2]
[342099855,1731441039871,-2142.19,0.0001248,2]
[342099857,1731441039883,-4461.00142383,0.0001248,2]
[342099858,1731441039895,-422.925162,0.0001248,2]
[342099860,1731441039906,-1015.75187423,0.0001248,2]
[342099861,1731441039917,-5602.7959869,0.0001248,2]
[342099862,1731441040029,-3435.44934736,0.0001248,2]
[342099868,1731441042632,-6249.25,0.0001248,2]
[342099870,1731441042642,-378.55854913,0.0001248,2]
[342099871,1731441042830,-1544.89479332,0.0001248,2]
[342099872,1731441042841,-156425.7159254,0.0001248,2]
[342099873,1731441042850,-5594.7677039,0.0001249,2]
[342099874,1731441042860,-3596.5470562,0.0001249,2]
[342099875,1731441042869,-5353.3479632,0.0001249,2]
[342099876,1731441042878,-953.8635479,0.0001249,2]
[342099877,1731441042887,-155.26961358,0.00012492,2]
[342099878,1731441042896,-867.075,0.000125,2]
[342099879,1731441042906,-651.18628304,0.00012501,2]
[342099880,1731441042915,-1375.0,0.00012501,2]
[342099881,1731441042925,-3447.193136,0.00012501,2]
[342099883,1731441043030,-851.70976804,0.00012501,2]
[342099884,1731441043041,-31105.42531715,0.00012501,2]
[342099885,1731441043050,-180081.456575,0.00012502,2]
[342099886,1731441043061,-6846.1407882,0.00012502,2]
[342099887,1731441043072,-7078.85882776,0.00012502,2]
[342099897,1731441045897,-687.3156,0.00012402,2]
[342099898,1731441045909,-1003.06397858,0.00012402,2]
[342099899,1731441045918,-2902.1340558,0.00012502,2]
[342099903,1731441046006,-9930.22099024,0.00012502,2]
[342099967,1731441047142,-121422.13670666,0.00012502,2]
[342099969,1731441047155,-3049.39215,0.00012502,2]
[342099972,1731441047167,-7910.87226206,0.00012502,2]
[342099974,1731441047179,-339139.18316448,0.00012502,2]
[342099976,1731441047191,-100049.60480232,0.00012502,2]
[342099978,1731441047204,-1247.98589308,0.00012502,2]
[342099980,1731441047215,-123700.58140859,0.00012502,2]
[342099982,1731441047225,-8400.54971653,0.00012502,2]
[342099984,1731441047238,-320345.69873941,0.00012502,2]
[342099992,1731441047305,-4015.42771119,0.00012502,2]